bitfinex/quotes_ETHUSD_20240618
["timestamp","ask_amount","ask_price","bid_price","bid_amount"]
[1718692040637,2.9613738,3452.7,3451.8,0.857]
[1718692040638,2.1043738,3452.6,3451.8,0.857]
[1718692041536,2.1043738,3452.6,3451.3,4.95444]
[1718692041737,2.1043738,3452.5,3451.4,3.722475]
[1718692041944,0.33233,3452.8,3451.4,3.722475]
[1718692042145,2.10522662,3452.7,3451.4,3.722475]
[1718692042510,2.10522662,3452.6,3451.4,3.722475]
[1718692042841,2.10522662,3452.5,3451.4,3.722475]
[1718692043003,2.4663,3453.0,3451.4,3.722475]
[1718692043335,2.10522361,3452.9,3451.4,3.722475]
[1718692043540,2.10522361,3452.9,3451.5,1.1133195]
[1718692047647,2.10522361,3452.9,3451.6,2.253]
[1718692047946,2.4663,3453.0,3451.6,2.253]
[1718692048245,2.10522597,3452.9,3451.6,2.253]
[1718692050863,2.3737,3452.8,3451.5,1.1133195]
[1718692051069,2.3737,3452.8,3451.6,0.84147695]
[1718692051070,2.10522597,3452.7,3451.6,0.84147695]
[1718692053938,2.10522597,3452.7,3451.4,2.057]
[1718692054146,5.10522597,3452.7,3451.3,2.3471]
[1718692054368,2.10522597,3452.6,3451.3,2.3471]
[1718692058044,2.10522597,3452.6,3451.4,2.95529945]
[1718692059712,2.10522597,3452.6,3451.5,2.4756]
[1718692060015,2.10522597,3452.6,3451.6,0.74878995]
[1718692060212,2.10522597,3452.6,3451.7,0.05793224]
[1718692060384,2.10522597,3452.6,3451.8,0.05793224]
[1718692060713,2.10522597,3452.6,3450.7,2.8979]
[1718692060918,2.4939,3452.5,3451.1,2.4756]
[1718692061085,2.10522597,3452.4,3451.1,2.4756]
[1718692061419,5.10522597,3452.4,3451.1,2.4756]
[1718692061717,2.10522597,3452.3,3451.4,0.857]
[1718692062579,2.10522597,3452.3,3451.1,2.4756]
[1718692062776,2.4843,3452.1,3451.3,0.857]
[1718692063516,2.4843,3452.1,3451.1,2.4756]
[1718692064074,2.4843,3452.1,3450.7,2.3717]
[1718692065886,2.4843,3452.1,3450.7,4.4297]
[1718692066477,2.4843,3452.1,3450.7,7.32764]
[1718692066804,2.4843,3452.1,3450.8,0.732764]
[1718692071139,2.4246,3452.0,3450.3,2.89827]
[1718692071429,2.4246,3451.8,3450.3,2.89827]
[1718692079835,2.4246,3451.8,3450.4,0.05795468]
[1718692080040,2.4979,3451.6,3450.1,2.89842]
[1718692080241,2.4979,3451.6,3450.2,2.11595465]
[1718692080538,2.4979,3451.6,3450.2,2.058]
[1718692081332,2.4979,3451.6,3450.3,2.89824]
[1718692082336,2.1058674,3451.5,3450.3,2.89824]
[1718692082539,2.4979,3451.6,3450.4,0.495624]
[1718692083402,2.10586111,3451.5,3450.4,0.495624]
[1718692084836,2.3879,3451.4,3450.4,0.495624]
[1718692085520,2.3879,3451.4,3450.8,0.858]
[1718692086109,2.3879,3451.4,3450.4,0.495624]
[1718692086312,2.71249,3451.4,3450.4,0.495624]
[1718692086529,2.71249,3451.4,3450.4,0.858]
[1718692087812,2.71249,3451.4,3449.9,5.26243]
[1718692088038,2.71249,3451.4,3450.4,0.858]
[1718692089322,2.2541,3451.2,3449.6,3.0]
[1718692089521,2.566969,3451.1,3449.7,0.834799]
[1718692089720,2.566969,3451.1,3450.3,0.858]
[1718692092635,2.566969,3451.1,3449.7,0.834799]
[1718692092838,2.566969,3451.1,3450.1,0.858]
[1718692093037,2.2928,3450.9,3450.1,0.858]
[1718692093728,2.2928,3450.9,3449.7,0.834799]
[1718692093931,2.2928,3450.9,3450.1,0.858]
[1718692094128,2.2928,3450.9,3449.7,0.834799]
[1718692094325,3.1397,3450.8,3449.9,0.858]
[1718692094560,0.35371969,3450.7,3450.0,0.858]
[1718692094764,2.2817,3450.8,3450.0,0.858]
[1718692096472,2.407,3450.7,3449.9,0.858]
[1718692101690,2.4531,3450.4,3449.7,0.858]
[1718692102759,2.4531,3450.4,3449.2,2.3796]
[1718692102963,2.4531,3450.4,3449.7,0.858]
[1718692105250,2.4531,3450.4,3449.3,0.527888]
[1718692105563,2.4531,3450.4,3449.6,0.858]
[1718692105764,2.4531,3450.4,3448.9,5.35353]
[1718692105765,0.858,3450.3,3449.4,0.858]
[1718692105979,2.4531,3450.4,3449.6,0.858]
[1718692106180,2.4531,3450.4,3448.9,2.4541]
[1718692106365,2.4531,3450.4,3449.5,0.858]
[1718692107254,2.4531,3450.4,3449.0,0.535363]
[1718692107585,2.4531,3450.4,3449.5,0.858]
[1718692107586,2.3077,3450.3,3449.5,0.858]
[1718692108288,3.1657,3450.2,3448.9,2.4541]
[1718692108597,2.3077,3450.2,3449.4,0.858]
[1718692110077,2.3077,3450.2,3449.8,0.858]
[1718692110354,2.3077,3450.2,3449.6,0.858]
[1718692111154,2.3077,3450.2,3449.6,0.91597176]
[1718692111376,2.3077,3450.2,3449.6,0.858]
[1718692111972,5.3287,3450.6,3449.8,0.858]
[1718692112180,6.65473026,3450.6,3449.8,0.858]
[1718692113090,2.3287,3449.8,3448.1,3.486982]
[1718692113290,3.0,3450.2,3448.5,0.858]
[1718692113291,2.3287,3450.1,3448.5,0.858]
[1718692113508,2.3287,3449.5,3448.5,0.858]
[1718692113672,2.3287,3449.5,3448.7,0.858]
[1718692114211,2.3287,3449.5,3448.1,2.3257]
[1718692114407,2.3287,3449.5,3448.7,0.858]
[1718692119082,2.4922,3449.3,3448.2,0.5226]
[1718692119382,2.4922,3449.3,3448.4,0.858]
[1718692120287,2.4922,3449.3,3448.6,0.858]
[1718692120680,2.4922,3449.3,3447.8,5.21679]
[1718692120882,2.4922,3449.3,3448.4,0.858]
[1718692121510,2.4922,3449.3,3448.6,0.858]
[1718692121717,2.4922,3449.3,3447.9,2.90031]
[1718692121894,2.4922,3449.3,3448.6,0.858]
[1718692127524,0.858,3449.2,3448.4,0.858]
[1718692127818,2.4922,3449.3,3448.4,0.858]
[1718692132426,2.4922,3449.3,3448.0,1.111719]
[1718692132622,2.4922,3449.3,3448.5,0.858]
[1718692134732,2.4922,3449.3,3448.0,1.111719]
[1718692134934,2.4759,3449.1,3448.4,0.858]
[1718692137508,2.4759,3449.1,3448.1,0.6328519]
[1718692137705,2.4234,3449.0,3447.7,3.0]
[1718692137902,2.4234,3449.0,3448.0,0.858]
[1718692138408,2.4234,3448.8,3447.9,0.858]
[1718692138614,0.32814,3448.7,3447.9,0.858]
[1718692138812,2.4234,3448.8,3447.9,0.858]
[1718692139036,2.4234,3448.8,3447.5,2.4874]
[1718692139236,2.4234,3448.8,3447.6,0.05799761]
[1718692139447,2.4234,3448.8,3448.0,0.858]
[1718692140233,2.4234,3448.8,3448.2,0.858]
[1718692141056,2.4234,3448.8,3448.5,0.858]
[1718692141552,2.4234,3448.8,3448.3,0.858]
[1718692142057,2.4234,3448.8,3447.7,2.4225]
[1718692142261,2.4234,3448.8,3448.2,0.858]
[1718692142429,2.4234,3448.8,3447.8,0.532314]
[1718692142622,2.4234,3448.8,3448.1,0.858]
[1718692143013,2.4234,3448.8,3447.3,2.3456]
[1718692143324,2.4234,3448.8,3447.9,0.858]
[1718692146320,2.2996,3448.5,3447.1,3.0]
[1718692146552,2.2996,3448.3,3447.6,0.858]
[1718692146755,2.2996,3448.3,3447.2,0.815113]
[1718692147045,2.2996,3448.3,3447.4,0.858]
[1718692147815,3.50762511,3448.8,3446.7,2.25]
[1718692148051,0.858,3447.3,3445.7,2.85604754]
[1718692148252,0.858,3447.1,3446.0,2.90188]
[1718692148584,7.43,3447.9,3446.9,0.858]
[1718692148846,2.2996,3447.8,3447.0,0.0580098]
[1718692149084,2.2996,3447.8,3446.5,2.25]
[1718692149219,2.2996,3447.5,3446.6,0.05801437]
[1718692149415,2.2996,3447.5,3446.0,5.0228896]
[1718692151022,2.2996,3447.5,3446.0,2.9598896]
[1718692151331,2.2996,3447.5,3446.1,3.17419496]
[1718692151543,2.2996,3447.5,3446.2,0.05801963]
[1718692151731,2.2996,3447.5,3446.3,0.05801964]
[1718692153339,2.2996,3447.5,3446.5,2.063]
[1718692153637,2.2996,3447.5,3446.6,0.1122689]
[1718692153951,2.2996,3447.5,3446.7,0.21752689]
[1718692154256,2.2996,3447.5,3446.8,0.0580131]
[1718692154621,7.43,3448.1,3446.8,0.0580131]
[1718692154858,2.4734,3448.0,3446.9,2.063]
[1718692155032,2.4734,3448.0,3447.0,0.05800872]
[1718692155232,2.4734,3448.0,3447.1,0.21210087]
[1718692155434,2.4734,3448.0,3447.2,0.0580085]
[1718692155638,2.4734,3448.0,3447.3,0.05800852]
[1718692156862,2.4734,3448.0,3447.3,2.12100852]
[1718692157048,5.4385,3448.5,3447.3,2.12100852]
[1718692157228,5.4385,3448.5,3447.4,0.46525094]
[1718692157558,2.4385,3448.5,3447.4,0.46525094]
[1718692158448,2.4385,3448.5,3447.5,0.05800422]
[1718692159157,2.4385,3448.5,3447.4,0.46525094]
[1718692159732,2.4385,3448.5,3447.1,2.27510087]
[1718692163140,2.4385,3448.5,3447.1,2.063]
[1718692163447,2.3367,3448.3,3447.1,2.063]
[1718692163847,2.3367,3448.3,3446.7,0.21752689]
[1718692164054,2.3367,3448.3,3446.4,2.063]
[1718692164055,2.3367,3448.1,3446.4,2.063]
[1718692164257,2.3367,3447.9,3446.4,2.063]
[1718692166211,2.3367,3447.9,3446.8,2.063]
[1718692166406,2.3367,3447.9,3446.9,0.05801205]
[1718692167552,2.3367,3447.9,3447.2,2.063]
[1718692167757,2.3367,3447.9,3447.2,2.2693]
[1718692167957,2.3367,3447.9,3447.3,0.05800737]
[1718692179260,3.50187438,3448.6,3447.3,0.05800737]
[1718692179492,4.5127467,3448.5,3447.6,2.063]
[1718692179659,2.4049,3448.5,3447.7,0.26430227]
[1718692179861,2.4049,3448.5,3447.8,0.0580011]
[1718692181861,2.10780117,3448.4,3447.2,2.2693]
[1718692182068,2.10780117,3448.4,3447.3,0.47091]
[1718692182291,2.432,3448.3,3447.3,0.47091]
[1718692182974,2.432,3448.3,3447.2,0.2063]
[1718692183174,2.3171,3448.1,3447.1,2.063]
[1718692184469,2.3171,3448.1,3446.8,2.437]
[1718692184673,2.3171,3448.1,3447.1,2.063]
[1718692184925,2.1080064,3448.0,3447.1,2.063]
[1718692186470,2.3248,3447.8,3447.1,2.063]
[1718692186671,2.3248,3447.8,3447.1,2.513]
[1718692188003,2.3248,3447.8,3447.2,0.05800802]
[1718692188205,2.3248,3447.8,3447.3,0.05800802]
[1718692188907,2.3248,3447.8,3447.1,2.513]
[1718692189286,2.3248,3447.8,3447.2,0.05800803]
[1718692189587,2.3248,3447.8,3447.3,0.31510883]
[1718692189989,2.3398,3448.4,3447.5,2.063]
[1718692190189,2.1078273,3448.3,3447.5,2.063]
[1718692190383,2.1078273,3448.3,3448.0,2.063]
[1718692190586,2.3398,3448.8,3448.1,0.55432445]
[1718692190821,2.3398,3448.8,3448.5,2.063]
[1718692191140,2.3398,3449.1,3447.6,2.3321]
[1718692191406,2.10745998,3449.0,3448.1,2.063]
[1718692193703,2.10745998,3449.0,3448.2,0.05799142]
[1718692193913,2.10745998,3449.0,3448.3,0.05799142]
[1718692194905,2.3505,3448.9,3448.1,2.063]
[1718692202238,2.3505,3448.9,3448.2,0.05799155]
[1718692202455,2.3505,3448.9,3448.3,0.27009072]
[1718692203032,2.3138,3449.5,3448.3,0.21209916]
[1718692203205,2.10735617,3449.4,3448.5,2.063]
[1718692203528,5.10735617,3449.4,3448.5,2.063]
[1718692203701,2.10735617,3449.3,3448.6,0.05798655]
[1718692203907,2.3138,3449.5,3448.9,2.063]
[1718692204319,2.1071451,3449.4,3448.9,2.063]
[1718692204637,2.3138,3449.5,3448.9,2.063]
[1718692204800,2.10713291,3449.4,3448.9,2.063]
[1718692205135,2.3138,3449.5,3448.9,2.063]
[1718692205690,2.3138,3449.5,3448.7,0.21209866]
[1718692206036,2.3138,3449.5,3448.5,2.063]
[1718692206230,2.3138,3449.5,3448.5,2.0395]
[1718692207031,2.10719699,3449.4,3448.5,2.0395]
[1718692207243,2.3138,3449.5,3448.5,2.0395]
[1718692207538,2.3138,3449.5,3448.6,0.0579868]
[1718692207832,2.3138,3449.5,3448.6,0.2889454]
[1718692208041,2.3138,3449.5,3448.6,0.2309586]
[1718692209102,2.3138,3449.5,3448.7,0.05798683]
[1718692210937,2.3138,3449.5,3448.6,0.2309586]
[1718692211133,2.3138,3449.5,3448.5,2.0395]
[1718692211305,2.2552,3449.3,3448.1,2.063]
[1718692211500,2.2552,3449.1,3448.1,2.063]
[1718692211706,2.2552,3449.1,3447.9,2.063]
[1718692212005,2.2552,3449.1,3448.0,1.18051]
[1718692213325,2.3382,3449.6,3448.3,2.063]
[1718692213525,2.3382,3449.4,3448.3,2.063]
[1718692213725,2.3382,3449.2,3448.3,2.063]
[1718692214109,2.3382,3449.2,3448.3,2.06208663]
[1718692214310,0.23382,3449.1,3448.3,2.06208663]
[1718692215745,0.23382,3449.1,3448.4,0.02799995]
[1718692216866,0.23382,3449.1,3448.1,2.063]
[1718692217164,0.23382,3449.1,3448.5,0.02814207]
[1718692217318,0.23382,3449.1,3448.1,2.063]
[1718692217519,0.23382,3449.1,3448.6,0.02812748]
[1718692217737,0.23382,3449.1,3448.1,2.063]
[1718692217952,0.23382,3449.1,3448.7,0.02811288]
[1718692218332,0.23382,3449.1,3448.1,2.063]
[1718692218655,2.339,3449.0,3448.1,2.063]
[1718692218831,2.339,3449.0,3448.2,0.08617742]
[1718692219027,2.2545,3449.5,3448.3,0.05799153]
[1718692219244,2.10732508,3449.4,3448.5,2.063]
[1718692219556,5.10732508,3449.4,3448.5,2.063]
[1718692219728,3.14350759,3449.3,3448.6,0.08611657]
[1718692219927,2.10732508,3449.2,3448.6,0.08611657]
[1718692220346,2.10732508,3449.2,3448.6,0.02812748]
[1718692222370,2.10732508,3449.2,3448.6,0.08611512]
[1718692222577,2.10732508,3449.2,3448.6,0.02812748]
[1718692225344,2.10732508,3449.2,3448.6,0.08611519]
[1718692226486,2.10732508,3449.2,3448.6,0.08611522]
[1718692226778,2.10732508,3449.2,3448.6,0.02812748]
[1718692226977,3.0,3449.4,3448.6,0.02812748]
[1718692227177,2.10725101,3449.3,3448.6,0.02812748]
[1718692227358,2.10725101,3449.2,3448.6,0.02812748]
[1718692227558,2.10725101,3449.1,3448.6,0.02812748]
[1718692227761,3.0,3449.4,3448.6,0.02812748]
[1718692227961,2.10728566,3449.3,3448.6,0.02812748]
[1718692228547,2.3555,3449.2,3448.6,0.02812748]
[1718692228751,5.10728566,3449.3,3448.6,0.02812748]
[1718692228752,2.10728566,3449.1,3448.6,0.02812748]
[1718692228946,2.432,3448.9,3447.7,2.4715]
[1718692229163,2.432,3448.7,3447.7,2.4715]
[1718692229409,2.10728566,3448.6,3447.8,0.04747004]
[1718692229704,2.10728566,3448.6,3448.2,0.859]
[1718692230901,2.10728566,3448.6,3447.4,2.3185]
[1718692231193,2.10728566,3448.6,3448.0,0.859]
[1718692231392,0.49932142,3448.5,3447.5,0.04754672]
[1718692231551,2.10728566,3448.4,3447.4,4.3805]
[1718692231747,2.10728566,3448.3,3447.9,2.2517]
[1718692231960,2.432,3448.7,3447.9,2.2517]
[1718692232148,2.10769802,3448.6,3447.9,2.30592227]
[1718692232570,2.10769802,3448.5,3447.9,2.30592227]
[1718692232778,2.10769802,3448.4,3448.2,2.062]
[1718692233087,10.10648235,3449.3,3448.2,2.062]
[1718692233381,10.10648235,3449.3,3448.3,2.4605]
[1718692233382,3.50170527,3449.2,3448.3,2.4605]
[1718692233559,3.0,3449.2,3448.3,2.4605]
[1718692233964,2.3746,3449.3,3448.3,2.4605]
[1718692234186,2.3746,3449.3,3448.4,0.45225]
[1718692234909,2.3746,3449.3,3448.5,0.05798898]
[1718692235479,2.3746,3449.3,3448.4,0.45225]
[1718692235788,2.3746,3449.3,3448.3,2.4605]
[1718692240650,2.3746,3449.3,3448.4,0.05798916]
[1718692241863,2.3746,3449.3,3448.3,2.4605]
[1718692242515,3.50175378,3449.8,3448.4,0.05798918]
[1718692242695,2.4019,3449.7,3448.4,0.05798918]
[1718692243005,1.33336538,3449.6,3448.4,0.5160381]
[1718692243168,4.33336538,3449.6,3448.4,0.5160381]
[1718692243601,3.0,3449.6,3448.4,0.5160381]
[1718692244575,3.0,3449.6,3448.5,2.4951]
[1718692248397,3.0,3449.6,3448.6,0.05798925]
[1718692249169,3.0,3449.6,3448.7,2.454]
[1718692250283,0.30207234,3449.7,3448.7,2.454]
[1718692250812,0.30207234,3449.7,3448.7,2.74520489]
[1718692253613,0.30207234,3449.7,3449.0,0.859]
[1718692255232,2.3601,3449.6,3448.8,0.859]
[1718692255442,5.3601,3449.6,3448.8,0.859]
[1718692255618,6.36239187,3449.6,3448.8,0.859]
[1718692257551,0.859,3449.3,3448.1,2.2997]
[1718692257715,3.056,3449.4,3447.9,0.859]
[1718692257716,2.491,3448.8,3447.9,0.859]
[1718692257903,0.335,3448.7,3447.9,0.859]
[1718692259205,1.194,3448.7,3447.1,2.4599]
[1718692259405,4.194,3448.7,3447.7,0.859]
[1718692259630,4.194,3448.7,3447.9,0.859]
[1718692259904,0.69868578,3448.6,3447.9,0.859]
[1718692260542,0.69868578,3448.6,3448.1,0.859]
[1718692260840,3.335,3448.7,3448.1,0.859]
[1718692262342,3.0,3448.7,3448.3,0.859]
[1718692262551,3.0,3449.1,3448.5,0.859]
[1718692263452,0.50180994,3449.3,3449.0,0.859]
[1718692263654,2.458,3449.5,3449.0,0.859]
[1718692263820,0.39621018,3449.4,3448.8,0.859]
[1718692265019,3.39621018,3449.4,3448.8,0.859]
[1718692266446,3.0,3449.4,3448.8,0.859]
[1718692266649,5.458,3449.5,3449.0,0.859]
[1718692266820,2.458,3449.5,3448.5,2.3033]
[1718692267142,2.458,3449.5,3448.8,0.859]
[1718692267715,2.458,3449.5,3448.6,0.859]
[1718692267954,3.0897,3449.5,3448.6,0.859]
[1718692268125,3.0,3449.4,3448.6,0.859]
[1718692269475,3.0,3449.4,3448.0,2.4013]
[1718692269676,3.859,3449.4,3448.5,0.859]
[1718692271091,2.3935,3449.3,3448.3,0.859]
[1718692271238,3.08192,3449.3,3448.3,0.859]
[1718692271964,2.3935,3449.3,3448.2,2.3586]
[1718692272147,2.4797,3449.7,3449.0,0.859]
[1718692273783,2.86980994,3450.1,3449.2,0.859]
[1718692273989,0.98898998,3450.0,3448.7,2.3586]
[1718692274175,1.84798998,3450.0,3449.0,0.859]
[1718692275790,1.84798998,3450.0,3449.2,0.859]
[1718692275949,0.721599,3449.9,3449.2,0.859]
[1718692278805,0.721599,3449.9,3449.2,3.1453]
[1718692279885,0.721599,3449.9,3449.2,0.859]
[1718692280607,0.721599,3449.9,3448.9,2.2651]
[1718692280811,0.721599,3449.9,3449.1,0.859]
[1718692281101,0.6948599,3449.8,3449.1,0.859]
[1718692282631,0.859,3450.0,3449.1,0.859]
[1718692285512,3.859,3450.0,3449.1,0.859]
[1718692286694,2.3107,3449.9,3448.7,2.2874]
[1718692286894,5.3107,3449.9,3449.1,0.859]
[1718692288311,3.1697,3449.9,3449.1,0.859]
[1718692288513,3.0,3449.8,3449.1,0.859]
[1718692290158,3.0,3449.8,3448.7,2.2874]
[1718692290319,3.0,3449.8,3449.0,0.859]
[1718692292451,3.0,3449.8,3448.8,0.05798232]
[1718692292770,2.3107,3449.9,3449.3,0.859]
[1718692292924,2.3107,3449.9,3449.1,0.859]
[1718692293263,2.84177,3449.9,3449.1,0.859]
[1718692293559,3.0,3449.8,3449.1,0.859]
[1718692294164,0.859,3449.2,3448.3,0.859]
[1718692294381,2.4345,3449.1,3448.3,0.859]
[1718692294661,2.4345,3449.1,3448.3,1.1701]
[1718692296924,0.859,3448.8,3447.7,2.4825]
[1718692297128,0.859,3448.8,3447.8,0.859]
[1718692297435,0.859,3448.8,3448.0,0.859]
[1718692298138,2.2771,3448.9,3448.0,0.859]
[1718692298324,5.2771,3448.9,3448.2,0.859]
[1718692298533,3.0,3449.1,3448.6,0.859]
[1718692298763,2.4512,3449.7,3448.8,0.859]
[1718692299128,0.859,3449.6,3448.8,0.859]
[1718692299330,3.0,3449.6,3448.8,0.859]
[1718692299653,2.4512,3449.7,3448.8,0.859]
[1718692299654,5.4512,3449.7,3448.8,0.859]
[1718692299829,0.684127,3449.6,3448.8,0.859]
[1718692300165,3.684127,3449.6,3448.8,0.859]
[1718692301727,3.0,3449.6,3448.8,0.859]
[1718692301992,5.4512,3449.7,3448.8,0.859]
[1718692303146,3.0,3449.6,3448.8,0.859]
[1718692303356,3.3102,3449.7,3448.8,0.859]
[1718692303555,3.0,3449.6,3448.8,0.859]
[1718692304458,2.4512,3449.7,3448.8,0.859]
[1718692305451,2.4512,3449.7,3448.9,0.05798305]
[1718692305652,3.135327,3449.7,3448.9,0.05798305]
[1718692305828,3.0,3449.6,3448.9,0.05798305]
[1718692306429,3.0,3449.6,3448.8,0.859]
[1718692306629,3.859,3449.6,3448.8,0.859]
[1718692309439,3.859,3449.6,3448.3,2.2552]
[1718692309639,3.859,3449.6,3448.6,0.859]
[1718692313776,3.859,3449.6,3448.4,0.22552]
[1718692313978,3.859,3449.6,3448.5,0.859]
[1718692314198,0.859,3449.4,3448.5,0.859]
[1718692316973,3.0,3449.6,3448.5,0.859]
[1718692317174,3.0,3449.6,3448.9,0.859]
[1718692317488,0.859,3449.9,3448.9,0.859]
[1718692317666,3.859,3449.9,3448.9,0.859]
[1718692318266,0.859,3449.7,3448.9,0.859]
[1718692319768,0.859,3449.7,3448.6,0.333972]
[1718692319769,3.0,3449.9,3449.1,0.859]
[1718692319964,2.3095,3450.0,3449.1,0.859]
[1718692320181,0.859,3449.9,3449.1,0.859]
[1718692320367,3.859,3449.9,3449.0,2.3266]
[1718692322188,3.0,3449.9,3449.1,0.859]
[1718692322389,3.1685,3450.0,3449.2,0.31856]
[1718692322581,3.0,3449.9,3449.2,0.31856]
[1718692325181,2.89913,3449.3,3449.2,0.31856]
[1718692326271,5.79826,3449.3,3449.2,0.31856]
[1718692327200,8.69739,3449.3,3449.2,0.31856]
[1718692336381,2.8993,3449.1,3449.0,2.3266]
[1718692336700,2.8993,3449.1,3449.0,3.1856]
[1718692337300,5.7986,3449.1,3449.0,3.1856]
[1718692342035,5.7986,3449.1,3449.0,2.3266]
[1718692342201,2.8993,3449.1,3448.7,2.3375]
[1718692342402,2.4212,3449.7,3448.9,0.859]
[1718692342631,3.027925,3449.7,3448.9,0.859]
[1718692347437,2.3179,3450.0,3449.0,0.05798283]
[1718692347611,5.3179,3450.0,3449.1,2.2752]
[1718692347803,2.3179,3450.0,3449.4,0.859]
[1718692348006,0.23179,3449.9,3449.4,0.859]
[1718692348332,3.0,3449.9,3449.2,0.859]
[1718692348634,2.3179,3450.0,3449.2,0.859]
[1718692351336,2.3179,3450.0,3449.1,3.1342]
[1718692351737,2.3274,3449.9,3448.8,2.3462]
[1718692351918,2.85919,3449.9,3449.1,0.859]
[1718692353152,0.859,3449.6,3448.3,2.432]
[1718692353317,2.3072,3449.4,3448.5,0.859]
[1718692353522,2.10710555,3449.3,3448.5,0.859]
[1718692353768,2.10710555,3449.3,3448.3,2.432]
[1718692354043,2.3996,3448.8,3448.0,3.1753]
[1718692354253,2.10710555,3448.7,3448.0,3.1753]
[1718692354560,2.10710555,3448.7,3448.2,0.859]
[1718692354975,2.10710555,3448.7,3447.6,2.3581]
[1718692355269,2.3632,3448.5,3447.3,2.3581]
[1718692355425,2.96610555,3448.4,3447.5,0.859]
[1718692355632,2.10710555,3448.3,3447.5,0.859]
[1718692355868,2.10710555,3448.2,3447.3,2.3581]
[1718692356100,2.10710555,3448.1,3447.3,0.859]
[1718692356866,2.10710555,3448.1,3447.5,0.859]
[1718692357062,2.10710555,3448.0,3447.5,0.859]
[1718692357229,3.0,3448.4,3447.5,0.859]
[1718692357568,2.75124015,3448.3,3447.5,0.859]
[1718692357877,5.10794909,3448.2,3447.7,0.859]
[1718692358075,2.10794909,3448.1,3447.7,0.859]
[1718692358366,3.0,3448.4,3447.7,0.859]
[1718692358562,2.1078969,3448.3,3447.9,0.859]
[1718692358739,5.3632,3448.5,3447.9,0.859]
[1718692358935,2.10775293,3448.4,3447.9,0.859]
[1718692359137,3.0,3448.4,3447.9,0.859]
[1718692359441,0.21071056,3448.6,3447.9,0.859]
[1718692359645,2.10773532,3448.5,3447.9,0.859]
[1718692360566,3.0,3448.7,3447.9,0.859]
[1718692360788,2.10770868,3448.6,3447.9,0.859]
[1718692360991,5.10770868,3448.6,3447.9,0.859]
[1718692361169,3.0,3448.6,3447.9,0.859]
[1718692361369,3.63383,3448.7,3447.9,0.859]
[1718692361693,2.4793,3448.8,3448.1,0.859]
[1718692361893,2.3262,3449.4,3448.1,0.91699641]
[1718692362045,0.859,3449.2,3448.3,0.859]
[1718692362236,2.10752125,3449.1,3448.5,0.859]
[1718692362436,2.10752125,3449.0,3448.0,0.0579954]
[1718692362664,2.10750006,3448.9,3448.3,0.859]
[1718692362846,0.859,3449.2,3448.3,0.859]
[1718692363167,2.10753251,3449.1,3448.3,0.859]
[1718692363767,5.10753251,3449.1,3448.3,0.859]
[1718692363970,2.10753251,3449.0,3448.3,0.859]
[1718692364267,5.10753251,3449.0,3448.3,0.859]
[1718692364473,3.0,3449.1,3448.3,0.859]
[1718692364670,2.10747373,3449.0,3448.3,0.859]
[1718692364861,4.02579938,3449.3,3448.3,0.859]
[1718692365058,2.10745566,3449.2,3448.3,0.859]
[1718692367375,2.10745566,3449.2,3448.3,0.91699459]
[1718692367578,2.10745566,3449.2,3448.5,0.859]
[1718692367778,0.9318455,3449.1,3448.5,0.859]
[1718692368076,3.0,3449.1,3448.7,0.859]
[1718692368288,3.0,3449.3,3448.9,0.859]
[1718692368644,5.4389,3449.7,3448.9,0.859]
[1718692368983,2.78724708,3449.6,3448.9,0.859]
[1718692369167,5.10728305,3449.5,3448.9,0.859]
[1718692369366,2.10728305,3449.4,3448.9,0.859]
[1718692369574,2.10728305,3449.4,3448.6,2.304]
[1718692370262,2.10728305,3449.3,3448.6,2.304]
[1718692370495,3.0,3449.6,3448.6,2.304]
[1718692370786,2.65118008,3449.5,3448.6,2.304]
[1718692370984,5.10729008,3449.4,3448.6,2.304]
[1718692371284,2.10729008,3449.3,3448.6,2.304]
[1718692371970,3.0,3449.6,3448.6,2.304]
[1718692372158,2.1072912,3449.5,3448.6,2.304]
[1718692372354,2.1072912,3449.4,3448.6,2.5344]
[1718692372562,2.1072912,3449.3,3448.7,0.05798593]
[1718692372769,3.0,3449.6,3448.7,0.05798593]
[1718692372965,2.10728378,3449.5,3448.7,0.05798593]
[1718692373144,2.10728378,3449.4,3448.7,0.05798593]
[1718692373348,2.10728378,3449.3,3448.8,0.25923859]
[1718692373548,3.0,3449.6,3448.8,0.31722386]
[1718692373784,2.10727851,3449.5,3448.8,0.31722386]
[1718692378310,3.0,3449.8,3448.8,0.31722386]
[1718692378509,2.10704998,3449.7,3448.8,0.31722386]
[1718692378807,2.10704998,3449.6,3448.9,0.26212239]
[1718692379118,3.0,3449.8,3449.0,0.05798159]
[1718692379312,2.10705183,3449.7,3449.0,0.05798159]
[1718692381116,2.10705183,3449.7,3449.1,2.4992]
[1718692387841,2.10705183,3449.7,3449.2,0.05797841]
[1718692387978,2.10705183,3449.7,3449.2,0.33990849]
[1718692389834,0.5017376,3449.9,3449.4,2.4819]
[1718692390037,3.50160604,3450.4,3449.5,0.05797319]
[1718692390540,3.0,3450.4,3449.5,0.05797319]
[1718692390768,2.3751,3450.5,3449.5,0.05797319]
[1718692390980,0.23751,3450.4,3449.5,0.05797319]
[1718692391259,3.23751,3450.4,3449.4,2.4819]